fUST/lending_fUST_20260227
["ID","MTS","AMOUNT","RATE_DAILY","PERIOD"]
[406748668,1772146245780,-1500.0,0.00014368,2]
[406748669,1772146245789,-1500.0,0.00014368,2]
[406748671,1772146245797,-1500.0,0.00014368,2]
[406748673,1772146245809,-1500.0,0.00014368,2]
[406748674,1772146245817,-420.0,0.00014381,2]
[406748675,1772146245826,-1680.0,0.00014427,2]
[406748676,1772146245835,-481.3178346,0.00014598,2]
[406748677,1772146245844,-156.88662602,0.00014623,2]
[406748678,1772146245853,-244.74175105,0.00014623,2]
[406748679,1772146245863,-689.0,0.00014623,2]
[406748680,1772146245872,-166.0,0.00014623,2]
[406748681,1772146245882,-689.0,0.00014623,2]
[406748682,1772146245893,-166.0,0.00014623,2]
[406748683,1772146245902,-689.0,0.00014623,2]
[406748684,1772146245911,-166.0,0.00014623,2]
[406748685,1772146245920,-338.0,0.00014623,2]
[406748686,1772146245930,-689.0,0.00014623,2]
[406748687,1772146245939,-338.0,0.00014623,2]
[406748688,1772146245948,-166.0,0.00014623,2]
[406748689,1772146245957,-689.0,0.00014623,2]
[406748690,1772146245966,-338.0,0.00014623,2]
[406748691,1772146245976,-689.0,0.00014623,2]
[406748692,1772146245985,-338.0,0.00014623,2]
[406748693,1772146245994,-689.0,0.00014623,2]
[406748694,1772146246003,-338.0,0.00014623,2]
[406748695,1772146246013,-689.0,0.00014623,2]
[406748696,1772146246022,-338.0,0.00014623,2]
[406748697,1772146246035,-689.0,0.00014623,2]
[406748698,1772146246045,-338.0,0.00014623,2]
[406748699,1772146246054,-689.0,0.00014623,2]
[406748700,1772146246063,-338.0,0.00014623,2]
[406748701,1772146246073,-338.0,0.00014623,2]
[406748702,1772146246083,-625.31727441,0.00014623,2]
[406748703,1772146246092,-165.0,0.00014623,2]
[406748704,1772146246102,-1000.0,0.00014766,2]
[406748705,1772146246114,-666.49657751,0.00014795,2]
[406748706,1772146246123,-1500.0,0.00014795,2]
[406748707,1772146246133,-1500.0,0.00014916,2]
[406748708,1772146246142,-1500.0,0.00014916,2]
[406748709,1772146246152,-2000.0,0.00014916,2]
[406748710,1772146246161,-1903.55521875,0.00014916,2]
[406748711,1772146246170,-151.0,0.00014949,2]
[406748712,1772146246179,-151.0,0.00014949,2]
[406748713,1772146246188,-151.0,0.00014949,2]
[406748714,1772146246198,-151.0,0.00014949,2]
[406748715,1772146246207,-151.0,0.00014949,2]
[406748716,1772146246216,-151.0,0.00014949,2]
[406748717,1772146246226,-151.0,0.00014949,2]
[406748718,1772146246235,-151.0,0.00014949,2]
[406748719,1772146246244,-151.0,0.00014949,2]
[406748720,1772146246254,-151.0,0.00014949,2]
[406748721,1772146246263,-151.0,0.00014949,2]
[406748722,1772146246272,-1957.856,0.00014949,2]
[406748723,1772146246281,-151.0,0.00014949,2]
[406748724,1772146246291,-151.0,0.00014949,2]
[406748725,1772146246300,-151.0,0.00014949,2]
[406748726,1772146246310,-151.0,0.00014949,2]
[406748727,1772146246320,-151.0,0.00014949,2]
[406748728,1772146246330,-500.0,0.00014957,2]
[406748729,1772146246340,-500.0,0.00014957,2]
[406748730,1772146246350,-500.0,0.00014957,2]
[406748731,1772146246359,-500.0,0.00014957,2]
[406748732,1772146246368,-500.0,0.00014957,2]
[406748733,1772146246377,-500.0,0.00014957,2]
[406748734,1772146246386,-500.0,0.00014957,2]
[406748735,1772146246395,-500.0,0.00014957,2]
[406748736,1772146246404,-500.0,0.00014957,2]
[406748737,1772146246414,-500.0,0.00014957,2]
[406748738,1772146246423,-500.0,0.00014957,2]
[406748739,1772146246432,-500.0,0.00014957,2]
[406748740,1772146246441,-500.0,0.00014957,2]
[406748741,1772146246450,-500.0,0.00014957,2]
[406748742,1772146246459,-500.0,0.00014957,2]
[406748743,1772146246468,-500.0,0.00014957,2]
[406748744,1772146246477,-651.27056419,0.00014957,2]
[406748745,1772146246487,-500.0,0.00014957,2]
[406748746,1772146246496,-500.0,0.00014957,2]
[406748747,1772146246505,-500.0,0.00014957,2]
[406748748,1772146246514,-500.0,0.00014957,2]
[406748749,1772146246523,-500.0,0.00014957,2]
[406748750,1772146246532,-500.0,0.00014957,2]
[406748751,1772146246541,-500.0,0.00014957,2]
[406748752,1772146246551,-500.0,0.00014957,2]
[406748753,1772146246559,-500.0,0.00014957,2]
[406748754,1772146246568,-500.0,0.00014957,2]
[406748755,1772146246578,-500.0,0.00014957,2]
[406748756,1772146246587,-500.0,0.00014957,2]
[406748757,1772146246596,-500.0,0.00014957,2]
[406748758,1772146246605,-500.0,0.00014957,2]
[406748759,1772146246614,-500.0,0.00014957,2]
[406748760,1772146246623,-500.0,0.00014957,2]
[406748761,1772146246633,-500.0,0.00014957,2]
[406748762,1772146246642,-500.0,0.00014957,2]
[406748763,1772146246651,-500.0,0.00014957,2]
[406748764,1772146246660,-500.0,0.00014957,2]
[406748765,1772146246670,-500.0,0.00014957,2]
[406748766,1772146246679,-500.0,0.00014957,2]
[406748767,1772146246688,-500.0,0.00014957,2]
[406748768,1772146246697,-500.0,0.00014957,2]
[406748769,1772146246706,-500.0,0.00014957,2]
[406748770,1772146246715,-500.0,0.00014957,2]
[406748771,1772146246724,-651.27056419,0.00014957,2]
[406748772,1772146246733,-500.0,0.00014957,2]
[406748773,1772146246742,-500.0,0.00014957,2]
[406748774,1772146246751,-500.0,0.00014957,2]
[406748775,1772146246760,-500.0,0.00014957,2]
[406748776,1772146246770,-500.0,0.00014957,2]
[406748777,1772146246780,-500.0,0.00014957,2]
[406748778,1772146246789,-500.0,0.00014957,2]
[406748779,1772146246797,-500.0,0.00014957,2]
[406748780,1772146246807,-500.0,0.00014957,2]
[406748781,1772146246816,-500.0,0.00014957,2]
[406748782,1772146246825,-500.0,0.00014957,2]
[406748783,1772146246835,-500.0,0.00014957,2]
[406748784,1772146246844,-500.0,0.00014957,2]
[406748785,1772146246854,-608.69347918,0.00014957,2]
[406748786,1772146246863,-500.0,0.00014957,2]
[406748787,1772146246873,-500.0,0.00014957,2]
[406748788,1772146246882,-500.0,0.00014957,2]
[406748789,1772146246891,-500.0,0.00014957,2]
[406748790,1772146247065,-500.0,0.00014957,2]
[406748791,1772146247075,-500.0,0.00014957,2]
[406748792,1772146247085,-500.0,0.00014957,2]
[406748793,1772146247094,-500.0,0.00014957,2]
[406748794,1772146247103,-500.0,0.00014957,2]
[406748795,1772146247114,-1701.64953666,0.00014957,2]
[406748796,1772146247123,-1701.64953666,0.00014957,2]
[406748797,1772146247132,-1701.64953666,0.00014957,2]
[406748798,1772146247142,-1701.64953666,0.00014957,2]
[406748799,1772146247152,-1701.64953666,0.00014957,2]
[406748800,1772146247162,-1386.0,0.00014958,2]
[406748801,1772146247171,-637.0,0.00014958,2]
[406748802,1772146247182,-2181.0,0.00014958,2]
[406748803,1772146247191,-728.0,0.00014958,2]
[406748804,1772146247200,-430.0,0.00014958,2]
[406748805,1772146247210,-150.0,0.00014958,2]
[406748806,1772146247220,-2030.296672,0.00015004,2]
[406748807,1772146247229,-168.0,0.00015021,2]
[406748808,1772146247239,-2105.41764886,0.00015059,2]
[406748809,1772146247250,-1000.0,0.00015109,5]
[406748810,1772146247260,-2183.31810187,0.00015114,2]
[406748811,1772146247270,-774.34151724,0.00015169,2]
[406748812,1772146247279,-174.39570348,0.0001529,2]
[406748813,1772146247289,-635.0,0.000153,2]
[406748814,1772146247298,-168.0,0.00015362,2]
[406748815,1772146247307,-268.6957395,0.00015434,2]
[406748816,1772146247316,-1888.419062,0.000157,2]
[406748817,1772146247325,-587.0,0.00015769,2]
[406748818,1772146247334,-697.58281393,0.00015817,2]
[406748819,1772146247344,-650.51969122,0.00015865,2]
[406748820,1772146247353,-2351.0,0.00015869,2]
[406748821,1772146247362,-889.59473679,0.00015977,2]
[406748822,1772146247371,-234.158943,0.00015988,2]
[406748823,1772146247380,-697.39636716,0.00016,2]
[406748824,1772146247389,-205.98,0.00016,30]
[406748825,1772146247398,-744.71502317,0.00016011,2]
[406748826,1772146247407,-800.0,0.00016018,2]
[406748827,1772146247416,-200.0,0.00016179,3]
[406748828,1772146247425,-168.0,0.00016194,2]
[406748829,1772146247434,-627.01495096,0.00016197,5]
[406748830,1772146247443,-200.0,0.000162,3]
[406748831,1772146247453,-200.0,0.000162,3]
[406748832,1772146247462,-200.0,0.000162,3]
[406748833,1772146247472,-753.51276663,0.00016203,2]
[406748834,1772146247482,-3541.9069828,0.00016241,2]
[406748835,1772146247492,-200.0,0.00016241,3]
[406748836,1772146247501,-458.43925714,0.00016246,5]
[406748837,1772146247511,-200.0,0.0001627,3]
[406748838,1772146247520,-1170.9354442,0.00016276,2]
[406748839,1772146247529,-250.0,0.00016283,2]
[406748840,1772146247538,-693.3919763,0.00016283,2]
[406748841,1772146247548,-500.0,0.00016283,2]
[406748842,1772146247557,-250.0,0.00016283,2]
[406748843,1772146247566,-500.0,0.00016283,2]
[406748844,1772146247575,-500.0,0.00016283,2]
[406748845,1772146247585,-500.0,0.00016283,2]
[406748846,1772146247594,-500.0,0.00016283,2]
[406748847,1772146247603,-500.0,0.00016283,2]
[406748848,1772146247613,-250.0,0.00016283,2]
[406748849,1772146247622,-500.0,0.00016283,2]
[406748850,1772146247631,-500.0,0.00016283,2]
[406748851,1772146247642,-500.0,0.00016283,2]
[406748852,1772146247651,-250.0,0.00016283,2]
[406748853,1772146247661,-500.0,0.00016283,2]
[406748854,1772146247671,-250.0,0.00016283,2]
[406748855,1772146247681,-500.0,0.00016283,2]
[406748856,1772146247691,-250.0,0.00016283,2]
[406748857,1772146247702,-250.0,0.00016283,2]
[406748858,1772146247711,-250.0,0.00016283,2]
[406748859,1772146247720,-250.0,0.00016283,2]
[406748860,1772146247729,-250.0,0.00016283,2]
[406748861,1772146247738,-250.0,0.00016283,2]
[406748862,1772146247747,-250.0,0.00016283,2]
[406748863,1772146247756,-250.0,0.00016283,2]
[406748864,1772146247765,-250.0,0.00016283,2]
[406748865,1772146247775,-250.0,0.00016283,2]
[406748866,1772146247784,-250.0,0.00016283,2]
[406748867,1772146247793,-250.0,0.00016283,2]
[406748868,1772146247802,-250.0,0.00016283,2]
[406748869,1772146247811,-209.40437684,0.00016283,2]
[406748870,1772146247820,-250.0,0.00016283,2]
[406748871,1772146247829,-217.15233878,0.00016283,2]
[406748872,1772146247838,-250.0,0.00016283,2]
[406748873,1772146247847,-225.18697532,0.00016283,2]
[406748874,1772146247856,-250.0,0.00016283,2]
[406748875,1772146247866,-233.51889341,0.00016283,2]
[406748876,1772146247875,-250.0,0.00016283,2]
[406748877,1772146247884,-242.15909246,0.00016283,2]
[406748878,1772146247892,-250.0,0.00016283,2]
[406748879,1772146247903,-251.11897888,0.00016283,2]
[406748880,1772146247911,-250.0,0.00016283,2]
[406748881,1772146247920,-260.4103811,0.00016283,2]
[406748882,1772146247929,-250.0,0.00016283,2]
[406748883,1772146247938,-270.0455652,0.00016283,2]
[406748884,1772146247947,-280.03725112,0.00016283,2]
[406748885,1772146247956,-290.39862941,0.00016283,2]
[406748886,1772146247965,-301.1433787,0.00016283,2]
[406748887,1772146247975,-500.0,0.00016283,2]
[406748888,1772146247984,-500.0,0.00016283,2]
[406748889,1772146247993,-500.0,0.00016283,2]
[406748890,1772146248003,-500.0,0.00016283,2]
[406748891,1772146248012,-500.0,0.00016283,2]
[406748892,1772146248021,-500.0,0.00016283,2]
[406748893,1772146248031,-500.0,0.00016283,2]
[406748894,1772146248041,-500.0,0.00016283,2]
[406748895,1772146248051,-500.0,0.00016283,2]
[406748896,1772146248060,-500.0,0.00016283,2]
[406748897,1772146248068,-500.0,0.00016283,2]
[406748898,1772146248078,-184.272,0.00016289,2]
[406748899,1772146248087,-753.51276661,0.00016289,2]
[406748900,1772146248096,-3500.0,0.00016299,2]
[406748901,1772146248106,-487.5809729,0.000163,2]
[406748902,1772146248116,-500.0,0.000163,2]
[406748903,1772146248125,-500.0,0.000163,2]
[406748904,1772146248135,-320.93024001,0.000163,2]
[406748905,1772146248144,-500.0,0.000163,2]
[406748906,1772146248154,-500.0,0.000163,2]
[406748907,1772146248163,-500.0,0.000163,2]
[406748908,1772146248172,-500.0,0.000163,2]
[406748909,1772146248182,-500.0,0.000163,2]
[406748910,1772146248191,-500.0,0.000163,2]
[406748911,1772146248200,-500.0,0.000163,2]
[406748912,1772146248210,-500.0,0.000163,2]
[406748913,1772146248219,-500.0,0.000163,2]
[406748914,1772146248228,-500.0,0.000163,2]
[406748915,1772146248238,-500.0,0.000163,2]
[406748916,1772146248247,-500.0,0.000163,2]
[406748917,1772146248257,-500.0,0.000163,2]
[406748918,1772146248266,-500.0,0.000163,2]
[406748919,1772146248275,-500.0,0.000163,2]
[406748920,1772146248284,-500.0,0.000163,2]
[406748921,1772146248294,-331.00106204,0.000163,2]
[406748922,1772146248303,-288.83721601,0.000163,2]
[406748923,1772146248312,-200.0,0.000163,3]
[406748924,1772146248321,-500.0,0.00016301,2]
[406748925,1772146248330,-500.0,0.00016301,2]
[406748926,1772146248341,-500.0,0.00016301,2]
[406748927,1772146248351,-500.0,0.00016301,2]
[406748928,1772146248361,-500.0,0.00016301,2]
[406748929,1772146248371,-263.84380988,0.00016301,2]
[406748930,1772146248381,-550.03513971,0.00016301,2]
[406748931,1772146248390,-500.0,0.00016301,2]
[406748932,1772146248400,-500.0,0.00016301,2]
[406748933,1772146248409,-500.0,0.00016301,2]
[406748934,1772146248419,-500.0,0.00016301,2]
[406748935,1772146248428,-500.0,0.00016301,2]
[406748936,1772146248438,-500.0,0.00016301,2]
[406748937,1772146248447,-500.0,0.00016301,2]
[406748938,1772146248457,-500.0,0.00016301,2]
[406748939,1772146248466,-500.0,0.00016301,2]
[406748940,1772146248477,-500.0,0.00016301,2]
[406748941,1772146248487,-449.66942093,0.00016301,2]
[406748942,1772146248496,-451.61494149,0.00016301,2]
[406748943,1772146248505,-582.70438679,0.00016301,2]
[406748944,1772146248515,-379156.46562276,0.00016303,2]
[406748945,1772146248523,-1000.0,0.00016303,2]
[406748946,1772146248533,-1000.0,0.00016303,2]
[406748947,1772146248542,-1000.0,0.00016303,2]
[406748948,1772146248551,-1000.0,0.00016303,2]
[406748949,1772146248560,-1000.0,0.00016303,2]
[406748950,1772146248569,-1000.0,0.00016303,2]
[406748951,1772146248578,-1000.0,0.00016303,2]
[406748952,1772146248587,-1000.0,0.00016303,2]
[406748953,1772146248596,-1000.0,0.00016303,2]
[406748954,1772146248606,-1000.0,0.00016303,2]
[406748955,1772146248615,-1000.0,0.00016303,2]
[406748956,1772146248624,-1000.0,0.00016303,2]
[406748957,1772146248633,-1000.0,0.00016303,2]
[406748958,1772146248642,-1000.0,0.00016303,2]
[406748959,1772146248651,-1000.0,0.00016303,2]
[406748960,1772146248660,-1000.0,0.00016303,2]
[406748961,1772146248669,-1000.0,0.00016303,2]
[406748962,1772146248678,-1000.0,0.00016303,2]
[406748963,1772146248688,-1000.0,0.00016303,2]
[406748964,1772146248697,-1000.0,0.00016303,2]
[406748965,1772146248706,-1000.0,0.00016303,2]
[406748966,1772146248715,-1000.0,0.00016303,2]
[406748967,1772146248724,-1000.0,0.00016303,2]
[406748968,1772146248733,-414.59,0.00016303,2]
[406748969,1772146248743,-200.0,0.00016303,3]
[406748970,1772146248752,-214499.48471899,0.00016335,2]
[406748971,1772146248761,-487.0,0.00016335,2]
[406748972,1772146248771,-487.0,0.00016335,2]
[406748973,1772146248780,-487.0,0.00016335,2]
[406748974,1772146248789,-487.0,0.00016335,2]
[406748975,1772146248798,-487.0,0.00016335,2]
[406748976,1772146248807,-487.0,0.00016335,2]
[406748977,1772146248816,-487.0,0.00016335,2]
[406748978,1772146248825,-487.0,0.00016335,2]
[406748979,1772146248834,-487.0,0.00016335,2]
[406748980,1772146248843,-487.0,0.00016335,2]
[406748981,1772146248852,-487.0,0.00016335,2]
[406748982,1772146248862,-487.0,0.00016335,2]
[406748983,1772146248871,-487.0,0.00016335,2]
[406748984,1772146248881,-487.0,0.00016335,2]
[406748985,1772146248893,-487.0,0.00016335,2]
[406748986,1772146248902,-487.0,0.00016335,2]
[406748987,1772146248911,-487.0,0.00016335,2]
[406748988,1772146248920,-487.0,0.00016335,2]
[406748989,1772146248929,-487.0,0.00016335,2]
[406748990,1772146248939,-487.0,0.00016335,2]
[406748991,1772146248948,-649.61,0.00016335,2]
[406748992,1772146248957,-1569.56133134,0.00016345,2]
[406748993,1772146248967,-225.0,0.0001637,2]
[406748994,1772146248976,-753.51276661,0.00016376,2]
[406748995,1772146248986,-1077.38027767,0.00016411,8]
[406748996,1772146248995,-640.0,0.00016415,2]
[406748997,1772146249004,-151.0,0.00016438,2]
[406748998,1772146249014,-151.0,0.00016438,2]
[406748999,1772146249024,-150.0,0.00016438,2]
[406749000,1772146249033,-168.0,0.00016442,2]
[406749001,1772146249046,-753.51276661,0.00016462,2]
[406749002,1772146249055,-727.15093097,0.00016504,3]
[406749003,1772146249064,-748.78138695,0.00016504,3]
[406749004,1772146249074,-753.51276661,0.00016548,2]
[406749005,1772146249084,-223.0,0.0001655,2]
[406749006,1772146249093,-223.0,0.00016558,2]
[406749007,1772146249103,-1440.7830211,0.00016606,2]
[406749008,1772146249113,-600.0,0.00016628,2]
[406749009,1772146249123,-168.0,0.00016631,2]
[406749010,1772146249133,-151.0,0.00016634,2]
[406749011,1772146249142,-187.609683,0.00016634,2]
[406749012,1772146249152,-151.0,0.00016634,2]
[406749013,1772146249161,-151.0,0.00016634,2]
[406749014,1772146249171,-230.55636781,0.00016634,2]
[406749015,1772146249180,-151.0,0.00016634,2]
[406749016,1772146249190,-100000.0,0.00016634,2]
[406749017,1772146249200,-1077.38027767,0.00016648,10]
[406749018,1772146249209,-223.0,0.00016662,2]
[406749019,1772146249218,-2081.66301191,0.00016687,2]
[406749020,1772146249227,-225.0,0.00016739,2]
[406749021,1772146249237,-168.0,0.00016742,2]
[406749022,1772146249380,-35524.54053509,0.0001683,2]
[406749023,1772146249406,-719.04747942,0.00016831,2]
[406749024,1772146249416,-7970.88019958,0.0001685,2]
[406749025,1772146249426,-2790.33125572,0.00016873,2]
[406749026,1772146249435,-1077.38027767,0.00016885,13]
[406749027,1772146249446,-151.0,0.000169,2]
[406749028,1772146249455,-223.0,0.00016932,2]
[406749029,1772146249466,-1313.71313377,0.00016972,2]
[406749030,1772146249476,-250.0,0.00016986,2]
[406749031,1772146249486,-84272.36093557,0.00017,2]
[406749032,1772146249496,-151.0,0.00017,2]
[406749033,1772146249507,-151.0,0.00017,2]
[406749034,1772146249516,-151.0,0.00017,2]
[406749035,1772146249525,-500.0,0.00017028,2]
[406749036,1772146249535,-168.0,0.00017039,2]
[406749037,1772146249544,-459.0,0.00017075,2]
[406749038,1772146249553,-3252.59845612,0.00017098,2]
[406749039,1772146249563,-1077.38027767,0.00017122,15]
[406749040,1772146249583,-223.0,0.00017155,2]
[406749041,1772146249605,-500.0,0.00017157,2]
[406749042,1772146249619,-164536.65612009,0.00017167,2]
[406749043,1772146249635,-13397.76184407,0.00017167,2]
[406749044,1772146249647,-8748.86749482,0.00017167,2]
[406749045,1772146249669,-639.54173987,0.00017167,2]
[406749046,1772146249767,-800.0,0.00016222,2]
[406749047,1772146249779,-800.0,0.00016251,2]
[406749048,1772146249791,-6645.4042133,0.00017167,2]
[406749049,1772146249803,-1209.79618404,0.00017167,2]
[406749050,1772146249845,-819.17814527,0.00016047,2]
[406749051,1772146249854,-24809.67026339,0.00017167,2]
[406749062,1772146715276,310.91807425,9.501e-05,2]
[406749063,1772146847157,-166.75545291,0.00012601,2]
[406749705,1772147438332,-4669.918295,0.00011863,2]
[406749709,1772147438361,-330.081705,0.00011863,2]
[406749711,1772147438371,-587.0,0.00011863,2]
[406749713,1772147438381,-1016.14640754,0.00011983,2]
[406749715,1772147438389,-300.0,0.00012103,2]
[406749716,1772147438398,-300.0,0.00012103,2]
[406749718,1772147438408,-1200.0,0.00012103,2]
[406749720,1772147438417,-10000.0,0.00012104,2]
[406749723,1772147438426,-10000.0,0.00012104,2]
[406749724,1772147438439,-241.37351216,0.00012165,2]
[406749727,1772147438448,-10000.0,0.00012165,2]
[406749728,1772147438458,-10300.38247452,0.000125,2]
[406749730,1772147438467,-241.0690911,0.00012728,2]
[406749732,1772147438476,-205.8747462,0.00012728,2]
[406749734,1772147438486,-292.3655291,0.00012887,2]
[406749736,1772147438495,-500.0,0.00013273,2]
[406749738,1772147438504,-500.0,0.00013273,2]
[406749740,1772147438513,-500.0,0.00013273,2]
[406749743,1772147438523,-500.0,0.00013273,2]
[406749744,1772147438534,-420.0,0.00013285,2]
[406749746,1772147438544,-480.0,0.00013313,2]
[406749748,1772147438554,-174.142667,0.00013351,2]
[406749750,1772147438563,-300.0,0.00013673,2]
[406749752,1772147438572,-316.70727423,0.00013698,2]
[406749754,1772147438582,-500.0,0.00013698,2]
[406749756,1772147438593,-500.0,0.00013698,2]
[406749758,1772147438602,-500.0,0.00013698,2]
[406749760,1772147438612,-384.18133882,0.00013698,2]
[406749762,1772147438621,-500.0,0.00013698,2]
[406749764,1772147438630,-500.0,0.00013698,2]
[406749766,1772147438640,-500.0,0.00013698,2]
[406749768,1772147438649,-500.0,0.00013698,2]
[406749770,1772147438658,-500.0,0.00013698,2]
[406749772,1772147438667,-500.0,0.00013698,2]
[406749774,1772147438676,-500.0,0.00013698,2]
[406749776,1772147438686,-500.0,0.00013698,2]
[406749778,1772147438695,-500.0,0.00013698,2]
[406749780,1772147438704,-500.0,0.00013698,2]
[406749782,1772147438713,-500.0,0.00013698,2]
[406749784,1772147438723,-600.33019567,0.00013698,2]
[406749786,1772147438732,-500.0,0.00013698,2]
[406749788,1772147438741,-500.0,0.00013698,2]
[406749790,1772147438750,-500.0,0.00013698,2]
[406749792,1772147438760,-500.0,0.00013698,2]
[406749794,1772147438769,-500.0,0.00013698,2]
[406749796,1772147438779,-500.0,0.00013698,2]
[406749798,1772147438789,-500.0,0.00013698,2]
[406749800,1772147438798,-500.0,0.00013698,2]
[406749802,1772147438808,-500.0,0.00013698,2]
[406749804,1772147438817,-500.0,0.00013698,2]
[406749806,1772147438826,-500.0,0.00013698,2]
[406749807,1772147438836,-500.0,0.00013698,2]
[406749808,1772147438845,-500.0,0.00013698,2]
[406749809,1772147438855,-500.0,0.00013698,2]
[406749810,1772147438865,-500.0,0.00013698,2]
[406749811,1772147438875,-500.0,0.00013698,2]
[406749812,1772147438884,-500.0,0.00013698,2]
[406749813,1772147438893,-500.0,0.00013698,2]
[406749814,1772147438903,-500.0,0.00013698,2]
[406749815,1772147438912,-500.0,0.00013698,2]
[406749816,1772147438921,-500.0,0.00013698,2]
[406749817,1772147438930,-500.0,0.00013698,2]
[406749818,1772147438939,-285.7988195,0.00013698,2]
[406749819,1772147438949,-500.0,0.00013698,2]
[406749820,1772147438958,-500.0,0.00013698,2]
[406749821,1772147438967,-500.0,0.00013698,2]
[406749822,1772147438977,-500.0,0.00013698,2]
[406749823,1772147438987,-500.0,0.00013698,2]
[406749824,1772147438996,-500.0,0.00013698,2]
[406749825,1772147439005,-500.0,0.00013698,2]
[406749826,1772147439016,-500.0,0.00013698,2]
[406749827,1772147439025,-500.0,0.00013698,2]
[406749828,1772147439035,-500.0,0.00013698,2]
[406749830,1772147439045,-500.0,0.00013698,2]
[406749832,1772147439054,-500.0,0.00013698,2]
[406749834,1772147439064,-500.0,0.00013698,2]
[406749836,1772147439073,-500.0,0.00013698,2]
[406749838,1772147439082,-500.0,0.00013698,2]
[406749840,1772147439091,-500.0,0.00013698,2]
[406749842,1772147439100,-500.0,0.00013698,2]
[406749844,1772147439109,-500.0,0.00013698,2]
[406749846,1772147439118,-424.79112933,0.00013698,2]
[406749848,1772147439128,-500.0,0.00013698,2]
[406749850,1772147439137,-500.0,0.00013698,2]
[406749852,1772147439146,-500.0,0.00013698,2]
[406749854,1772147439156,-500.0,0.00013698,2]
[406749856,1772147439165,-500.0,0.00013698,2]
[406749858,1772147439175,-500.0,0.00013698,2]
[406749860,1772147439184,-500.0,0.00013698,2]
[406749862,1772147439193,-500.0,0.00013698,2]
[406749863,1772147439203,-500.0,0.00013698,2]
[406749864,1772147439212,-500.0,0.00013698,2]
[406749865,1772147439220,-500.0,0.00013698,2]
[406749866,1772147439229,-500.0,0.00013698,2]
[406749867,1772147439239,-303.31900437,0.00013698,2]
[406749868,1772147439248,-200.13339846,0.00013698,2]
[406749869,1772147439258,-500.0,0.00013698,2]
[406749870,1772147439268,-500.0,0.00013698,2]
[406749871,1772147439277,-500.0,0.00013698,2]
[406749872,1772147439287,-500.0,0.00013698,2]
[406749873,1772147439296,-500.0,0.00013698,2]
[406749874,1772147439307,-500.0,0.00013698,2]
[406749875,1772147439316,-500.0,0.00013698,2]
[406749876,1772147439325,-500.0,0.00013698,2]
[406749877,1772147439334,-500.0,0.00013698,2]
[406749878,1772147439344,-500.0,0.00013698,2]
[406749879,1772147439354,-500.0,0.00013698,2]
[406749880,1772147439366,-500.0,0.00013698,2]
[406749881,1772147439376,-500.0,0.00013698,2]
[406749882,1772147439385,-500.0,0.00013698,2]
[406749883,1772147439395,-500.0,0.00013698,2]
[406749884,1772147439405,-500.0,0.00013698,2]
[406749885,1772147439415,-500.0,0.00013698,2]
[406749886,1772147439424,-500.0,0.00013698,2]
[406749887,1772147439438,-500.0,0.00013698,2]
[406749888,1772147439448,-500.0,0.00013698,2]